fUST/lending_fUST_20260330
["ID","MTS","AMOUNT","RATE_DAILY","PERIOD"]
[419083669,1774850656357,-154.7,0.00032627,15]
[419083670,1774850656387,-323.15,0.00032684,15]
[419083671,1774850656414,-154.7,0.00032696,15]
[419083672,1774850656443,-152.0,0.00032697,30]
[419083673,1774850656470,-267.0,0.00032697,30]
[419083674,1774850656497,-205.0,0.00032697,30]
[419083675,1774850656527,-152.0,0.00032697,30]
[419083676,1774850656555,-162.91,0.00032733,15]
[419083677,1774850656585,-323.15,0.00032784,15]
[419083678,1774850656612,-154.7,0.00032796,15]
[419083679,1774850656640,-154.81,0.00032804,15]
[419083680,1774850656671,-599.58416209,0.00032876,120]
[419083681,1774850656699,-500.0,0.00032877,10]
[419083682,1774850656727,-500.0,0.00032877,12]
[419083683,1774850656757,-323.15,0.00032884,60]
[419083684,1774850656784,-1000.0,0.000329,120]
[419083685,1774850656811,-1351.5,0.000329,120]
[419083686,1774850656837,-154.81,0.00032904,60]
[419083687,1774850656867,-323.15,0.00032984,60]
[419083688,1774850656894,-188.63100175,0.00033,120]
[419083689,1774850656920,-258.41041041,0.00033,30]
[419083690,1774850656948,-186.2866135,0.00033,120]
[419083691,1774850656975,-163.37594944,0.00033,120]
[419083692,1774850657001,-154.82,0.00033004,60]
[419083693,1774850657030,-323.15,0.00033084,60]
[419083694,1774850657056,-451.0,0.0003315,11]
[419083695,1774850657086,-323.15,0.00033184,60]
[419083696,1774850657128,-1000.0,0.000332,120]
[419083697,1774850657157,-384.45937336,0.000332,117]
[419083698,1774850657188,-384.45937335,0.000332,117]
[419083699,1774850657359,-384.45937335,0.000332,117]
[419083700,1774850657389,-384.45937335,0.000332,117]
[419083701,1774850657418,-384.45937335,0.000332,117]
[419083702,1774850657451,-323.15,0.00033284,60]
[419083703,1774850657479,-490.64,0.000333,120]
[419083704,1774850657509,-170.73,0.000333,120]
[419083705,1774850657537,-490.64,0.000333,120]
[419083706,1774850657568,-323.15,0.00033384,60]
[419083707,1774850657596,-500.0,0.00033425,14]
[419083708,1774850657628,-534.24,0.00033461,60]
[419083709,1774850657658,-323.15,0.00033484,60]
[419083710,1774850657685,-1000.0,0.000335,120]
[419083711,1774850657715,-153.67,0.00033561,60]
[419083712,1774850657745,-534.24,0.00033561,60]
[419083713,1774850657778,-323.15,0.00033584,60]
[419083714,1774850657806,-444.78,0.00033661,90]
[419083715,1774850657835,-153.67,0.00033661,60]
[419083716,1774850657865,-534.24,0.00033661,60]
[419083717,1774850657895,-323.15,0.00033684,60]
[419083718,1774850657922,-152.0,0.00033697,30]
[419083719,1774850657948,-267.0,0.00033697,30]
[419083720,1774850657975,-205.0,0.00033697,30]
[419083721,1774850658000,-152.0,0.00033697,30]
[419083722,1774850658028,-451.0,0.00033698,12]
[419083723,1774850658057,-153.67,0.00033761,60]
[419083724,1774850658086,-534.24,0.00033761,60]
[419083725,1774850658115,-323.15,0.00033784,60]
[419083726,1774850658141,-397.4689,0.000338,20]
[419083727,1774850658169,-179.27,0.000338,120]
[419083728,1774850658195,-227.4561935,0.000338,20]
[419083729,1774850658221,-1000.0,0.000338,120]
[419083730,1774850658247,-635.793,0.000338,20]
[419083731,1774850658275,-153.67,0.00033861,60]
[419083732,1774850658304,-534.24,0.00033861,60]
[419083733,1774850658333,-323.15,0.00033884,60]
[419083734,1774850658360,-1351.5,0.000339,120]
[419083735,1774850658389,-153.67,0.00033961,60]
[419083736,1774850658417,-534.24,0.00033961,60]
[419083737,1774850658443,-1444.0,0.00033973,120]
[419083738,1774850658472,-323.15,0.00033984,60]
[419083739,1774850658499,-500.0,0.00034,120]
[419083740,1774850658528,-153.67,0.00034061,60]
[419083741,1774850658557,-534.24,0.00034061,60]
[419083742,1774850658585,-323.15,0.00034084,60]
[419083743,1774850658612,-200.0,0.00034088,120]
[419083744,1774850658639,-1000.0,0.000341,120]
[419083745,1774850658669,-153.67,0.00034161,60]
[419083746,1774850658698,-534.24,0.00034161,60]
[419083747,1774850658726,-323.15,0.00034184,60]
[419083748,1774850658752,-451.0,0.00034246,13]
[419083749,1774850658783,-153.67,0.00034261,60]
[419083750,1774850658812,-534.24,0.00034261,60]
[419083751,1774850658841,-323.15,0.00034284,60]
[419083752,1774850658868,-188.24,0.000343,120]
[419083753,1774850658895,-200.0,0.00034321,120]
[419083754,1774850658927,-153.67,0.00034361,60]
[419083755,1774850658956,-534.24,0.00034361,60]
[419083756,1774850658985,-323.15,0.00034384,60]
[419083757,1774850659010,-1000.0,0.000344,120]
[419083758,1774850659038,-153.67,0.00034461,60]
[419083759,1774850659066,-534.24,0.00034461,60]
[419083760,1774850659094,-323.15,0.00034484,60]
[419083761,1774850659120,-500.0,0.00034521,16]
[419083762,1774850659148,-200.0,0.00034523,120]
[419083763,1774850659178,-153.67,0.00034561,60]
[419083764,1774850659209,-534.24,0.00034561,60]
[419083765,1774850659241,-323.15,0.00034584,60]
[419083766,1774850659271,-153.67,0.00034661,60]
[419083767,1774850659300,-534.24,0.00034661,60]
[419083768,1774850659332,-323.15,0.00034684,60]
[419083769,1774850659362,-155.66600649,0.00034697,30]
[419083770,1774850659389,-267.0,0.00034697,30]
[419083771,1774850659417,-205.0,0.00034697,30]
[419083772,1774850659445,-152.0,0.00034697,30]
[419083773,1774850659471,-1000.0,0.000347,120]
[419083774,1774850659502,-153.67,0.00034761,60]
[419083775,1774850659532,-534.24,0.00034761,60]
[419083776,1774850659560,-323.15,0.00034784,60]
[419083777,1774850659587,-451.0,0.00034794,14]
[419083778,1774850659612,-168.0,0.000348,120]
[419083779,1774850659638,-29203.79546743,0.0003484,10]
[419083780,1774850659755,-153.67,0.00034861,60]
[419083781,1774850659801,-534.24,0.00034861,60]
[419083782,1774850659833,-323.15,0.00034884,60]
[419083783,1774850659863,-1351.5,0.000349,120]
[419083784,1774850659894,-153.67,0.00034961,60]
[419083785,1774850659925,-534.24,0.00034961,60]
[419083786,1774850659956,-323.15,0.00034984,60]
[419083787,1774850659986,-200.0,0.00034986,120]
[419083788,1774850660014,-300.0,0.00035,14]
[419083789,1774850660041,-22099.0,0.00035,15]
[419083790,1774850660069,-542.06600043,0.00035,120]
[419083791,1774850660095,-398.7,0.00035,10]
[419083792,1774850660122,-1000.0,0.00035,120]
[419083793,1774850660153,-100470.48285464,0.00035,120]
[419083794,1774850660182,-170.0,0.00035,120]
[419083795,1774850660210,-150.0,0.00035,69]
[419083796,1774850660240,-500.0,0.00035,90]
[419083797,1774850660271,-500.0,0.00035,90]
[419083798,1774850660298,-570.97437961,0.00035,90]
[419083799,1774850660326,-156.37720399,0.00035,90]
[419083800,1774850660354,-100000.0,0.00035,30]
[419083801,1774850660384,-153.67,0.00035061,60]
[419083802,1774850660415,-534.24,0.00035061,60]
[419083803,1774850660444,-323.24623263,0.00035084,60]
[419083804,1774850660471,-153.67,0.00035161,60]
[419083805,1774850660500,-534.24,0.00035161,60]
[419083806,1774850660526,-200.0,0.00035258,120]
[419083807,1774850660555,-153.67,0.00035261,60]
[419083808,1774850660584,-534.24,0.00035261,60]
[419083809,1774850660611,-1000.0,0.000353,120]
[419083810,1774850660637,-451.0,0.00035342,15]
[419083811,1774850660665,-153.67,0.00035361,60]
[419083812,1774850660697,-534.24,0.00035361,60]
[419083813,1774850660724,-444.78,0.00035393,120]
[419083814,1774850660753,-152.0,0.00035393,120]
[419083815,1774850660780,-267.0,0.00035393,120]
[419083816,1774850660807,-162.0,0.00035393,120]
[419083817,1774850660837,-205.0,0.00035393,120]
[419083818,1774850660865,-152.0,0.00035393,120]
[419083819,1774850660895,-535.0,0.00035403,30]
[419083820,1774850660922,-768.0,0.00035403,30]
[419083821,1774850660982,-153.67,0.00035461,60]
[419083822,1774850661011,-534.24,0.00035461,60]
[419083823,1774850661039,-339.232,0.0003547,30]
[419083824,1774850661065,-329.27354538,0.00035473,120]
[419083825,1774850661093,-170.0,0.000355,120]
[419083826,1774850661123,-153.67,0.00035561,60]
[419083827,1774850661155,-534.24,0.00035561,60]
[419083828,1774850661184,-1000.0,0.000356,120]
[419083829,1774850661214,-500.0,0.00035616,18]
[419083830,1774850661246,-349.72929954,0.00035616,30]
[419083831,1774850661278,-1000.0,0.00035645,30]
[419083832,1774850661308,-492.0,0.00035645,30]
[419083833,1774850661339,-153.67,0.00035661,60]
[419083834,1774850661372,-534.24,0.00035661,60]
[419083835,1774850661403,-154.84,0.00035678,30]
[419083836,1774850661439,-153.90156724,0.00035761,60]
[419083837,1774850661468,-534.24,0.00035761,60]
[419083838,1774850661497,-534.24,0.00035861,60]
[419083839,1774850661525,-451.0,0.0003589,16]
[419083840,1774850661551,-449.0327,0.000359,60]
[419083841,1774850661580,-161.29,0.000359,30]
[419083842,1774850661608,-531.2,0.000359,30]
[419083843,1774850661635,-1000.0,0.000359,120]
[419083844,1774850661662,-531.2,0.000359,30]
[419083845,1774850661689,-1351.5,0.000359,120]
[419083846,1774850661717,-170.0,0.000359,120]
[419083847,1774850661746,-534.24,0.00035961,60]
[419083848,1774850661773,-200.0,0.00035985,120]
[419083849,1774850661801,-1000.0,0.00036,120]
[419083850,1774850661831,-534.24,0.00036061,60]
[419083851,1774850661859,-534.24,0.00036161,60]
[419083852,1774850661886,-1000.0,0.000362,120]
[419083853,1774850661915,-534.24,0.00036261,60]
[419083854,1774850661945,-534.24,0.00036361,60]
[419083855,1774850661972,-152.0,0.00036393,120]
[419083856,1774850662097,-267.0,0.00036393,120]
[419083857,1774850662125,-162.0,0.00036393,120]
[419083858,1774850662152,-205.0,0.00036393,120]
[419083859,1774850662180,-152.0,0.00036393,120]
[419083860,1774850662206,-170.0,0.000364,120]
[419083861,1774850662233,-200.0,0.00036438,120]
[419083862,1774850662260,-451.0,0.00036438,17]
[419083863,1774850662290,-534.44,0.00036461,60]
[419083864,1774850662316,-1000.0,0.000365,120]
[419083865,1774850662343,-500.0,0.00036712,20]
[419083866,1774850662370,-1000.0,0.000368,120]
[419083867,1774850662397,-162.0,0.000368,120]
[419083868,1774850662426,-187.53753898,0.0003687,120]
[419083869,1774850662456,-186.67126091,0.00036872,120]
[419083870,1774850662486,-186.58323479,0.00036874,120]
[419083871,1774850662513,-1351.5,0.000369,120]
[419083872,1774850662540,-170.0,0.000369,120]
[419083873,1774850662566,-451.0,0.00036986,18]
[419083874,1774850662592,-1000.0,0.000371,120]
[419083875,1774850662619,-211.02620242,0.0003726,14]
[419083876,1774850662646,-170.0,0.000373,120]
[419083877,1774850662674,-152.0,0.00037393,120]
[419083878,1774850662701,-267.0,0.00037393,120]
[419083879,1774850662729,-162.0,0.00037393,120]
[419083880,1774850662756,-205.0,0.00037393,120]
[419083881,1774850662786,-152.0,0.00037393,120]
[419083882,1774850662813,-1000.0,0.000374,120]
[419083883,1774850662842,-200.0,0.00037442,120]
[419083884,1774850662869,-1261962.6956,0.00037444,30]
[419083885,1774850662895,-451.0,0.00037534,19]
[419083886,1774850662920,-1000.0,0.000377,120]
[419083887,1774850662947,-170.0,0.000378,120]
[419083888,1774850662972,-500.0,0.00037808,22]
[419083889,1774850662999,-1351.5,0.000379,120]
[419083890,1774850663025,-1500.0,0.000379,120]
[419083891,1774850663051,-167.03516399,0.00038,120]
[419083892,1774850663077,-1000.0,0.00038,120]
[419083893,1774850663103,-1000.0,0.00038,120]
[419083894,1774850663129,-451.0,0.00038082,20]
[419083895,1774850663157,-292.18,0.000381,60]
[419083896,1774850663184,-531.2,0.000381,120]
[419083897,1774850663213,-474.8782,0.000381,120]
[419083898,1774850663243,-9250.85354616,0.00038164,120]
[419083899,1774850663273,-170.0,0.000382,120]
[419083900,1774850663303,-1000.0,0.000383,120]
[419083901,1774850663331,-152.0,0.00038393,120]
[419083902,1774850663359,-267.0,0.00038393,120]
[419083903,1774850663386,-162.0,0.00038393,120]
[419083904,1774850663413,-205.0,0.00038393,120]
[419083905,1774850663441,-152.0,0.00038393,120]
[419083906,1774850663467,-1000.0,0.000386,120]
[419083907,1774850663492,-451.0,0.0003863,21]
[419083908,1774850663518,-200.0,0.00038653,120]
[419083909,1774850663545,-170.0,0.000387,120]
[419083910,1774850663570,-168.0,0.000388,120]
[419083911,1774850663596,-1000.0,0.000389,120]
[419083912,1774850663624,-1351.5,0.000389,120]
[419083913,1774850663650,-1500.0,0.000389,120]
[419083914,1774850663677,-500.0,0.00038904,24]
[419083915,1774850663703,-369.91011454,0.00038904,90]
[419083916,1774850663731,-21720.0,0.00039,20]
[419083917,1774850663759,-200.0,0.00039032,120]
[419083918,1774850663786,-451.0,0.00039178,22]
[419083919,1774850663812,-1072.0,0.000392,120]
[419083920,1774850663839,-170.0,0.000392,120]
[419083921,1774850663867,-1000.0,0.0003921,60]
[419083922,1774850663895,-791.0,0.0003921,60]
[419083923,1774850663921,-762.66483503,0.000393,120]
[419083924,1774850663947,-208.07874962,0.000393,120]
[419083925,1774850663975,-807.81708131,0.000393,120]
[419083926,1774850664000,-1600.34336505,0.000393,120]
[419083927,1774850664027,-246.75815477,0.000393,120]
[419083928,1774850664053,-192.63469776,0.000393,120]
[419083929,1774850664078,-178.44112702,0.000393,120]
[419083930,1774850664104,-397.93825012,0.000393,120]
[419083931,1774850664131,-310.26102083,0.000393,120]
[419083932,1774850664157,-572.59157803,0.000393,120]
[419083933,1774850664271,-815.23626291,0.000393,120]
[419083934,1774850664298,-196.17500001,0.000393,120]
[419083935,1774850664324,-705.68441242,0.000393,120]
[419083936,1774850664350,-152.0,0.00039393,120]
[419083937,1774850664376,-267.0,0.00039393,120]
[419083938,1774850664404,-162.0,0.00039393,120]
[419083939,1774850664431,-205.0,0.00039393,120]
[419083940,1774850664457,-152.0,0.00039393,120]
[419083941,1774850664482,-158.57408543,0.000395,14]
[419083942,1774850664509,-170.0,0.000396,120]
[419083943,1774850664536,-451.0,0.00039726,23]
[419083944,1774850664565,-168.0,0.000398,120]
[419083945,1774850664594,-1351.5,0.000399,120]
[419083946,1774850664622,-1500.0,0.000399,120]
[419083947,1774850664648,-3009.5100213,0.00039975,120]
[419083948,1774850664676,-8027.7,0.0004,14]
[419083949,1774850664704,-5000.0,0.0004,120]
[419083950,1774850664730,-344.03290944,0.0004,120]
[419083951,1774850664757,-310.0,0.0004,30]
[419083952,1774850664782,-873.75143063,0.0004,120]
[419083953,1774850664810,-1000.0,0.0004,120]
[419083954,1774850664836,-1000.0,0.0004,120]
[419083955,1774850664862,-1200.0,0.0004,120]
[419083956,1774850664889,-500.0,0.0004,26]
[419083957,1774850664916,-170.0,0.000401,120]
[419083958,1774850664941,-451.0,0.00040273,24]
[419083959,1774850664967,-152.0,0.00040393,120]
[419083960,1774850664993,-267.0,0.00040393,120]
[419083961,1774850665023,-162.0,0.00040393,120]
[419083962,1774850665049,-205.0,0.00040393,120]
[419083963,1774850665076,-152.0,0.00040393,120]
[419083964,1774850665103,-200.0,0.00040471,120]
[419083965,1774850665130,-200.0,0.00040491,120]
[419083966,1774850665156,-762.66483503,0.000405,120]
[419083967,1774850665182,-807.81708131,0.000405,120]
[419083968,1774850665208,-1600.34336505,0.000405,120]
[419083969,1774850665234,-246.75815477,0.000405,120]
[419083970,1774850665260,-192.63469776,0.000405,120]
[419083971,1774850665286,-178.44112702,0.000405,120]
[419083972,1774850665311,-397.93825012,0.000405,120]
[419083973,1774850665338,-310.26102083,0.000405,120]
[419083974,1774850665368,-572.59157803,0.000405,120]
[419083975,1774850665395,-815.23626291,0.000405,120]
[419083976,1774850665423,-705.68441242,0.000405,120]
[419083977,1774850665452,-262.41412079,0.00040548,120]
[419083978,1774850665482,-170.0,0.000406,120]
[419083979,1774850665510,-1524.51489898,0.00040712,120]
[419083980,1774850665536,-451.0,0.00040821,25]
[419083981,1774850665563,-1351.5,0.000409,120]
[419083982,1774850665589,-1500.0,0.000409,120]
[419083983,1774850665616,-240.0,0.00040986,120]
[419083984,1774850665642,-240.0,0.00040986,120]
[419083985,1774850665667,-240.0,0.00040986,120]
[419083986,1774850665692,-240.0,0.00040986,120]
[419083987,1774850665719,-243.25,0.00040986,87]
[419083988,1774850665744,-49848.0,0.00041,30]
[419083989,1774850665771,-170.0,0.00041,120]
[419083990,1774850665798,-152.0,0.00041041,120]
[419083991,1774850665825,-200.0,0.00041068,120]
[419083992,1774850665852,-500.0,0.00041096,28]
[419083993,1774850665877,-500.0,0.00041096,28]
[419083994,1774850665904,-500.0,0.00041096,28]
[419083995,1774850665930,-150.28641256,0.000411,120]
[419083996,1774850665956,-150.28641256,0.000411,120]
[419083997,1774850665983,-150.28641256,0.000411,120]
[419083998,1774850666009,-150.28641256,0.000411,120]
[419083999,1774850666036,-150.28641256,0.000411,120]
[419084000,1774850666063,-150.28,0.000411,120]
[419084001,1774850666089,-150.28641256,0.000411,120]
[419084002,1774850666116,-150.28641256,0.000411,120]
[419084003,1774850666142,-150.28641256,0.000411,120]
[419084004,1774850666170,-150.28641256,0.000411,120]
[419084005,1774850666200,-150.28641256,0.000411,120]
[419084006,1774850666228,-150.28641256,0.000411,120]
[419084007,1774850666338,-150.28641256,0.000411,120]
[419084008,1774850666367,-150.28641256,0.000411,120]
[419084009,1774850666395,-150.28641256,0.000411,120]
[419084010,1774850666423,-150.28641256,0.000411,120]
[419084011,1774850666451,-150.28641256,0.000411,120]
[419084012,1774850666479,-150.28641256,0.000411,120]
[419084013,1774850666507,-150.28641256,0.000411,120]
[419084014,1774850666534,-150.28,0.000411,120]
[419084015,1774850666561,-235.93,0.000411,120]
[419084016,1774850666589,-200.0,0.00041225,120]
[419084017,1774850666615,-451.0,0.00041369,26]
[419084018,1774850666642,-152.0,0.00041393,120]
[419084019,1774850666670,-267.0,0.00041393,120]
[419084020,1774850666697,-162.0,0.00041393,120]
[419084021,1774850666725,-205.0,0.00041393,120]
[419084022,1774850666753,-152.0,0.00041393,120]
[419084023,1774850666781,-170.0,0.000415,120]
[419084024,1774850666808,-762.66483503,0.000417,120]
[419084025,1774850666834,-807.81708131,0.000417,120]
[419084026,1774850666861,-1600.34336505,0.000417,120]
[419084027,1774850666888,-246.75815477,0.000417,120]
[419084028,1774850666916,-192.63469776,0.000417,120]
[419084029,1774850666941,-178.44112702,0.000417,120]
[419084030,1774850666967,-397.93825012,0.000417,120]
[419084031,1774850666993,-310.26102083,0.000417,120]
[419084032,1774850667020,-572.59157803,0.000417,120]
[419084033,1774850667048,-815.23626291,0.000417,120]
[419084034,1774850667076,-705.68441242,0.000417,120]
[419084035,1774850667103,-646000.0,0.000418,30]
[419084036,1774850667131,-300.0,0.000419,30]
[419084037,1774850667158,-300.0,0.000419,120]
[419084038,1774850667184,-1351.5,0.000419,120]
[419084039,1774850667212,-1500.0,0.000419,120]
[419084040,1774850667240,-170.0,0.000419,120]
[419084041,1774850667267,-451.0,0.00041917,27]
[419084042,1774850667294,-152.0,0.00041972,120]
[419084043,1774850667321,-2000.0,0.00042,120]
[419084044,1774850667348,-1000.0,0.00042,120]
[419084045,1774850667374,-55715.50123704,0.00042,120]
[419084046,1774850667400,-500.0,0.00042192,30]
[419084047,1774850667429,-9365.22938646,0.00042298,120]
[419084048,1774850667456,-200.0,0.00042391,120]
[419084049,1774850667484,-170.0,0.000424,120]
[419084050,1774850667510,-7044.7202,0.0004244,30]
[419084051,1774850667537,-451.0,0.00042465,28]
[419084052,1774850667564,-168.0,0.000425,120]
[419084053,1774850667590,-293119.1048155,0.000425,30]
[419084054,1774850667616,-475.0,0.00042716,120]
[419084055,1774850667643,-2500.0,0.0004275,120]
[419084056,1774850667669,-200000.0,0.000429,120]
[419084057,1774850667696,-1351.5,0.000429,120]
[419084058,1774850667723,-1500.0,0.000429,120]
[419084059,1774850667751,-170.0,0.000429,120]
[419084060,1774850667778,-152.0,0.00042903,120]
[419084061,1774850667804,-2312.83697232,0.00042999,43]
[419084062,1774850667831,-506.78,0.00043,120]
[419084063,1774850667857,-475.0,0.00043,120]
[419084064,1774850667883,-76632.10278479,0.00043,30]
[419084065,1774850681551,-600.0,0.00021389,10]
[419084066,1774850681583,-2855.94,0.0002199,10]
[419084067,1774850681612,-2951.14,0.0002199,10]
[419084068,1774850681657,-720.0,0.00023528,10]
[419084069,1774850681712,-864.0,0.00025881,10]
[419084070,1774850681759,-1000.0,0.00028469,30]
[419084071,1774850681803,-1000.0,0.00031316,30]
[419084072,1774850681832,-244.0,0.00031316,30]
[419084073,1774850681864,-861.0,0.00034448,30]
[419084074,1774850681892,-6063.78,0.00035,120]
[419084075,1774850681948,-6063.78,0.000364,120]
[419084076,1774850681975,-6063.78,0.00037856,120]
[419084077,1774850682001,-227.17,0.00038865,120]
[419084078,1774850682027,-425.6,0.00039,120]
[419084079,1774850682053,-1266.56,0.00039,120]
[419084080,1774850682080,-164.88158735,0.000393,120]
[419084081,1774850682106,-198.96912505,0.000393,120]
[419084082,1774850682133,-6063.78,0.0003937,120]
[419084083,1774850682160,-164.88158735,0.000405,120]
[419084084,1774850682186,-198.96912505,0.000405,120]
[419084085,1774850682213,-425.6,0.0004056,120]
[419084086,1774850682242,-1266.56,0.0004056,120]
[419084087,1774850682269,-6063.78,0.00040945,120]
[419084088,1774850682297,-164.88158735,0.000417,120]
[419084089,1774850682325,-198.96912505,0.000417,120]
[419084090,1774850682354,-425.6,0.00042182,120]
[419084091,1774850682381,-1266.56,0.00042182,120]
[419084092,1774850682410,-334965.89721521,0.00043,30]
[419084093,1774850682437,-762.66483503,0.00043,120]
[419084094,1774850682466,-807.81708131,0.00043,120]
[419084095,1774850682495,-1600.34336505,0.00043,120]
[419084096,1774850682523,-192.63469776,0.00043,120]
[419084097,1774850682550,-178.44112702,0.00043,120]
[419084098,1774850682664,-572.59157803,0.00043,120]
[419084099,1774850682693,-55716.67758003,0.00043,30]
[419084100,1774850682720,-815.23626291,0.00043,120]
[419084101,1774850682746,-705.68441242,0.00043,120]
[419084102,1774850682773,-502.4985003,0.00043,120]
[419084103,1774850682800,-19819.256296,0.00043,120]
[419084104,1774850682826,-736.0,0.00043,60]
[419084105,1774850682853,-512.0,0.00043,60]
[419084106,1774850682879,-198.96912505,0.00043,120]
[419084107,1774850682905,-451.0,0.00043013,29]
[419084108,1774850682932,-200.0,0.00043151,120]
[419084109,1774850682960,-170.0,0.000433,120]
[419084110,1774850682985,-898.3474364,0.00043495,30]
[419084111,1774850683013,-2230.315306,0.0004356,30]
[419084112,1774850683041,-451.0,0.00043561,30]
[419084113,1774850683071,-782.0,0.000438,90]
[419084114,1774850683100,-206.70959732,0.000438,120]
[419084115,1774850683131,-170.0,0.000438,120]
[419084116,1774850683159,-174.61919141,0.00043832,60]
[419084117,1774850683187,-151.0,0.00043832,60]
[419084118,1774850683215,-478.75725327,0.00043832,60]
[419084119,1774850683247,-578.20924308,0.00043832,60]
[419084120,1774850683275,-174.61919143,0.00043832,60]
[419084121,1774850683303,-500.64053123,0.00043832,60]
[419084122,1774850683331,-578.20924308,0.00043832,60]
[419084123,1774850683359,-2150.738,0.00043832,60]
[419084124,1774850683387,-216.45818998,0.00043833,30]
[419084125,1774850683415,-156.587,0.00043833,30]
[419084126,1774850683442,-156.587,0.00043833,30]
[419084127,1774850683470,-151.0,0.00043833,30]
[419084128,1774850683498,-429.318,0.00043833,30]
[419084129,1774850683525,-162.380719,0.00043833,60]
[419084130,1774850683553,-151.0,0.00043833,60]
[419084131,1774850683581,-445.202766,0.00043833,60]
[419084132,1774850683608,-168.3888056,0.00043833,120]
[419084133,1774850683635,-151.0,0.00043833,120]
[419084134,1774850683661,-461.67526834,0.00043833,120]
[419084135,1774850683693,-518.5,0.00043833,30]
[419084136,1774850683720,-156.587,0.00043833,30]
[419084137,1774850683749,-537.6845,0.00043833,60]
[419084138,1774850683776,-500.0,0.00043833,30]
[419084139,1774850683805,-1888.00000001,0.00043833,30]
[419084140,1774850683836,-162.380719,0.00043833,60]
[419084141,1774850683865,-557.5788265,0.00043833,120]
[419084142,1774850683892,-168.3888056,0.00043833,120]
[419084143,1774850683920,-500.0,0.00043833,60]
[419084144,1774850683948,-160.82332863,0.00043833,30]
[419084145,1774850683975,-500.0,0.00043833,120]
[419084146,1774850684002,-518.5,0.00043833,30]
[419084147,1774850684029,-537.6845,0.00043833,60]
[419084148,1774850684065,-151.0,0.00043833,30]
[419084149,1774850684093,-557.5788265,0.00043833,120]
[419084150,1774850684120,-2000.0,0.00043833,30]
[419084151,1774850684147,-2074.0,0.00043833,60]
[419084152,1774850684173,-152.0,0.00043834,120]
[419084153,1774850684200,-1000.0,0.00043835,120]
[419084154,1774850684225,-151.0,0.00043835,120]
[419084155,1774850684251,-151.0,0.00043835,120]
[419084156,1774850684278,-302.1415298,0.00043835,120]
[419084157,1774850684304,-151.0,0.00043835,120]
[419084158,1774850684334,-151.0,0.00043835,120]
[419084159,1774850684361,-225.2203334,0.00043835,120]
[419084160,1774850684390,-199.38955746,0.00043835,120]
[419084161,1774850684421,-414.0,0.00043835,120]
[419084162,1774850684452,-500.0,0.00043835,120]
[419084163,1774850684479,-151.0,0.00043835,120]
[419084164,1774850684505,-500.0,0.00043835,120]
[419084165,1774850684612,-500.0,0.00043835,120]
[419084166,1774850684640,-160.0,0.00043835,120]
[419084167,1774850684667,-151.0,0.00043835,120]
[419084168,1774850684693,-625.35447308,0.00043835,120]